[Event "95th Caplin Hastings Congress"]
[Site "Hastings"]
[Date "2019.12.30"]
[Round "3.38"]
[White "Persson, Andreas"]
[Black "Jennings, Richard"]
[Result "1-0"]
[ECO "A46"]
[WhiteElo "2112"]
[BlackElo "1903"]
[Annotator "NA"]
[PlyCount "63"]
[EventDate "2019.12.28"]
[EventType "swiss"]
[EventCountry "ENG"]
[SourceTitle "playchess.com"]
[Source "ChessBase"]
[SourceQuality "1"]
[TimeControl "40/6600+30:3000+30"]

1. d4 {[%emt 0:09:34]} d6 {[%emt 0:09:52]} 2. Nf3 {[%emt 0:00:28]} Nf6 {[%emt 0:00:14]} 3. g3 {[%emt 0:00:29]} Nbd7 {[%emt 0:00:39]} 4. Bg2 {[%emt 0:01:29]} e5 {[%emt 0:00:33]} 5. dxe5 {[%emt 0:01:19]} dxe5 {[%emt 0:00:33]} 6. Nc3 {[%emt 0:06:03]} c6 {[%emt 0:01:47]} 7. O-O {[%emt 0:03:37]} Be7 {[%emt 0:01:14]} 8. a4 {[%emt 0:06:15]} a5 {[%emt 0:03:19]} 9. Nd2 {[%emt 0:20:03]} O-O {[%emt 0:02:36]} 10. Nc4 {[%emt 0:02:22]} Qc7 {[%emt 0:01:49]} 11. Be3 {[%emt 0:11:24]} Rd8 {[%emt 0:03:59]} 12. Qc1 {[%emt 0:03:57]} Bc5 {[%emt 0:07:09]} 13. Rd1 {[%emt 0:04:01]} Re8 {[%emt 0:08:00]} 14. h3 {[%emt 0:05:58]} Bf8 {[%emt 0:09:53]} 15. Qd2 {[%emt 0:03:15]} Re6 {[%emt 0:09:04]} 16. f4 {[%emt 0:12:16]} Nh5 {[%emt 0:18:29]} 17. f5 {[%emt 0:01:12]} Re8 {[%emt 0:03:14]} 18. Ne4 {[%emt 0:01:33]} Nhf6 {[%emt 0:07:23]} 19. Ned6 {[%emt 0:02:34]} Bxd6 {[%emt 0:01:42]} 20. Nxd6 {[%emt 0:01:33]} Rd8 {[%emt 0:01:55]} 21. Nc4 {[%emt 0:00:29]} Re8 {[%emt 0:05:26]} 22. g4 {[%emt 0:00:32]} b6 {[%emt 0:04:55]} 23. Qd6 {[%emt 0:01:00]} Qxd6 {[%emt 0:03:19]} 24. Nxd6 {[%emt 0:00:08]} Rd8 {[%emt 0:02:05]} 25. Bxc6 {[%emt 0:00:17]} Rb8 {[%emt 0:00:19]} 26. g5 {[%emt 0:00:51]} Nh5 {[%emt 0:01:13]} 27. Nxc8 {[%emt 0:00:46]} Rdxc8 {[%emt 0:01:03]} 28. Bxd7 {[%emt 0:00:30]} Rxc2 {[%emt 0:00:11]} 29. Rd2 {[%emt 0:01:57]} Rc4 {[%emt 0:02:03]} 30. Bb5 {[%emt 0:01:45]} Re4 {[%emt 0:01:35]} 31. Rad1 {[%emt 0:01:21]} g6 {[%emt 0:02:25]} 32. Rd8+ {[%emt 0:00:47]} 1-0

[Event "95th Caplin Hastings Congress"]
[Site "Hastings"]
[Date "2019.12.30"]
[Round "3.39"]
[White "Metcalfe, Charlie P"]
[Black "Hutchinson, Paul A"]
[Result "0-1"]
[ECO "D46"]
[WhiteElo "1867"]
[BlackElo "2112"]
[Annotator "NA"]
[PlyCount "180"]
[EventDate "2019.12.28"]
[EventType "swiss"]
[EventCountry "ENG"]
[SourceTitle "playchess.com"]
[Source "ChessBase"]
[SourceQuality "1"]
[TimeControl "40/6600+30:3000+30"]

1. d4 {[%emt 0:09:31]} d5 {[%emt 0:09:35]} 2. c4 {[%emt 0:00:03]} c6 {[%emt 0:00:08]} 3. Nf3 {[%emt 0:00:04]} Nf6 {[%emt 0:00:05]} 4. Nc3 {[%emt 0:00:03]} e6 {[%emt 0:00:05]} 5. e3 {[%emt 0:00:37]} Bd6 {[%emt 0:00:22]} 6. Bd3 {[%emt 0:04:03]} Nbd7 {[%emt 0:00:09]} 7. O-O {[%emt 0:00:11]} O-O {[%emt 0:00:09]} 8. b3 {[%emt 0:23:12]} e5 {[%emt 0:00:35]} 9. cxd5 {[%emt 0:06:26]} cxd5 {[%emt 0:01:39]} 10. dxe5 {[%emt 0:00:40]} Nxe5 {[%emt 0:00:07]} 11. Be2 {[%emt 0:06:54]} Nc6 {[%emt 0:10:53]} 12. Bb2 {[%emt 0:03:29]} h6 {[%emt 0:04:58]} 13. Rc1 {[%emt 0:02:34]} a6 {[%emt 0:06:14]} 14. h3 {[%emt 0:07:40]} Be6 {[%emt 0:02:52]} 15. Nd4 {[%emt 0:14:45]} Nxd4 {[%emt 0:03:00]} 16. Qxd4 {[%emt 0:00:05]} Qe7 {[%emt 0:06:16]} 17. Bf3 {[%emt 0:08:28]} Rad8 {[%emt 0:01:16]} 18. Rfd1 {[%emt 0:10:08]} Rfe8 {[%emt 0:08:25]} 19. Na4 {[%emt 0:06:31]} Bb8 {[%emt 0:04:44]} 20. Qb6 {[%emt 0:03:42]} Bd6 {[%emt 0:15:50]} 21. Kh1 {[%emt 0:05:29]} Rc8 {[%emt 0:05:23]} 22. Bxf6 {[%emt 0:02:05]} gxf6 {[%emt 0:00:08]} 23. Qd4 {[%emt 0:01:09]} Rxc1 {[%emt 0:05:15]} 24. Rxc1 {[%emt 0:00:01]} Be5 {[%emt 0:00:10]} 25. Qb6 {[%emt 0:01:08]} Rd8 {[%emt 0:03:26]} 26. Rd1 {[%emt 0:01:30]} Rd6 {[%emt 0:01:43]} 27. Qc5 {[%emt 0:01:15]} Qd8 {[%emt 0:00:13]} 28. Qb4 {[%emt 0:01:20]} Qc7 {[%emt 0:04:59]} 29. Nc5 {[%emt 0:00:34]} Rc6 {[%emt 0:00:38]} 30. Nd3 {[%emt 0:00:31]} Rc2 {[%emt 0:02:50]} 31. Nxe5 {[%emt 0:00:42]} Qxe5 {[%emt 0:04:53]} 32. Qd4 {[%emt 0:00:31]} Qxd4 {[%emt 0:02:17]} 33. Rxd4 {[%emt 0:00:03]} Rxf2 {[%emt 0:00:11]} 34. Bxd5 {[%emt 0:00:15]} Bxd5 {[%emt 0:00:13]} 35. Rxd5 {[%emt 0:00:02]} Rxa2 {[%emt 0:00:09]} 36. Rd6 {[%emt 0:01:44]} b5 {[%emt 0:06:01]} 37. Rxf6 {[%emt 0:00:24]} Kg7 {[%emt 0:00:08]} 38. Rd6 {[%emt 0:00:37]} Ra3 {[%emt 0:00:16]} 39. b4 {[%emt 0:00:28]} Rxe3 {[%emt 0:00:20]} 40. Rxa6 {[%emt 0:00:02]} Rb3 {[%emt 0:00:12]} 41. Rb6 {[%emt 0:50:45]} Rxb4 {[%emt 0:50:26]} 42. Kg1 {[%emt 0:00:00]} f6 {[%emt 0:00:00]} 43. Kf2 {[%emt 0:00:00]} Kg6 {[%emt 0:00:00]} 44. Ke3 {[%emt 0:00:00]} h5 {[%emt 0:00:00]} 45. Kd3 {[%emt 0:00:00]} Rb2 {[%emt 0:00:00]} 46. Rb8 {[%emt 0:00:00]} Kf7 {[%emt 0:00:00]} 47. Ke4 {[%emt 0:00:00]} Rxg2 {[%emt 0:00:00]} 48. Rxb5 {[%emt 0:00:00]} Kg6 {[%emt 0:00:00]} 49. Kf3 {[%emt 0:00:00]} Ra2 {[%emt 0:00:00]} 50. Kg3 {[%emt 0:00:50]} Ra3+ {[%emt 0:00:00]} 51. Kh4 {[%emt 0:00:32]} Ra4+ {[%emt 0:00:00]} 52. Kg3 {[%emt 0:00:06]} Re4 {[%emt 0:00:00]} 53. Ra5 {[%emt 0:03:23]} Re5 {[%emt 0:00:00]} 54. Ra4 {[%emt 0:01:03]} Kg5 {[%emt 0:00:00]} 55. Rb4 {[%emt 0:01:15]} Re3+ {[%emt 0:00:00]} 56. Kg2 {[%emt 0:00:06]} Rc3 {[%emt 0:00:00]} 57. Ra4 {[%emt 0:00:49]} Rd3 {[%emt 0:00:00]} 58. Rb4 {[%emt 0:00:10]} Rd2+ {[%emt 0:00:00]} 59. Kf3 {[%emt 0:00:37]} Rd5 {[%emt 0:00:00]} 60. Kg3 {[%emt 0:00:20]} h4+ {[%emt 0:00:00]} 61. Kf3 {[%emt 0:00:14]} Rd3+ {[%emt 0:00:00]} 62. Kg2 {[%emt 0:00:49]} f5 {[%emt 0:00:00]} 63. Ra4 {[%emt 0:00:46]} Rg3+ {[%emt 0:00:00]} 64. Kh2 {[%emt 0:00:08]} Re3 {[%emt 0:00:00]} 65. Kg2 {[%emt 0:00:15]} Re4 {[%emt 0:00:00]} 66. Ra8 {[%emt 0:01:22]} Rb4 {[%emt 0:04:50]} 67. Rh8 {[%emt 0:00:23]} Rb3 {[%emt 0:00:50]} 68. Rc8 {[%emt 0:00:28]} Rb2+ {[%emt 0:01:15]} 69. Kf3 {[%emt 0:00:35]} Rb3+ {[%emt 0:01:15]} 70. Kg2 {[%emt 0:00:06]} Re3 {[%emt 0:01:57]} 71. Rc4 {[%emt 0:00:55]} Re4 {[%emt 0:02:03]} 72. Rc8 {[%emt 0:00:24]} Kf4 {[%emt 0:00:22]} 73. Rc3 {[%emt 0:00:40]} Re2+ {[%emt 0:00:39]} 74. Kg1 {[%emt 0:00:27]} Re3 {[%emt 0:00:09]} 75. Rc5 {[%emt 0:00:29]} Rxh3 {[%emt 0:00:13]} 76. Rc4+ {[%emt 0:00:28]} Kg5 {[%emt 0:00:08]} 77. Kg2 {[%emt 0:00:06]} Re3 {[%emt 0:00:16]} 78. Kf2 {[%emt 0:00:08]} Re4 {[%emt 0:00:18]} 79. Rc3 {[%emt 0:00:10]} Kg4 {[%emt 0:00:17]} 80. Rb3 {[%emt 0:00:18]} Ra4 {[%emt 0:00:09]} 81. Rb2 {[%emt 0:00:52]} f4 {[%emt 0:00:41]} 82. Kg2 {[%emt 0:00:20]} Ra3 {[%emt 0:00:14]} 83. Kg1 {[%emt 0:00:20]} h3 {[%emt 0:05:16]} 84. Rf2 {[%emt 0:00:21]} Kg3 {[%emt 0:00:37]} 85. Rg2+ {[%emt 0:00:06]} Kf3 {[%emt 0:01:46]} 86. Rf2+ {[%emt 0:00:07]} Ke3 {[%emt 0:00:08]} 87. Rb2 {[%emt 0:00:32]} f3 {[%emt 0:01:30]} 88. Rc2 {[%emt 0:00:58]} Ra1+ {[%emt 0:00:00]} 89. Kh2 {[%emt 0:00:05]} f2 {[%emt 0:00:00]} 90. Rc3+ {[%emt 0:00:19]} Kd4 {[%emt 0:00:00]} 0-1

[Event "95th Caplin Hastings Congress"]
[Site "Hastings"]
[Date "2019.12.30"]
[Round "3.40"]
[White "Drastik, Penelope"]
[Black "Comellas Blanchart, Jordi"]
[Result "0-1"]
[ECO "D80"]
[WhiteElo "1821"]
[BlackElo "2064"]
[Annotator "NA"]
[PlyCount "48"]
[EventDate "2019.12.28"]
[EventType "swiss"]
[EventCountry "ENG"]
[SourceTitle "playchess.com"]
[Source "ChessBase"]
[SourceQuality "1"]
[TimeControl "40/6600+30:3000+30"]

1. d4 {[%emt 0:09:31]} Nf6 {[%emt 0:09:37]} 2. c4 {[%emt 0:00:02]} g6 {[%emt 0:00:08]} 3. Nc3 {[%emt 0:00:03]} d5 {[%emt 0:00:07]} 4. Bg5 {[%emt 0:00:02]} Ne4 {[%emt 0:00:14]} 5. Bh4 {[%emt 0:00:03]} Nxc3 {[%emt 0:00:15]} 6. bxc3 {[%emt 0:00:02]} dxc4 {[%emt 0:00:13]} 7. e3 {[%emt 0:00:03]} Be6 {[%emt 0:00:21]} 8. Be2 {[%emt 0:00:04]} Nd7 {[%emt 0:04:03]} 9. Nh3 {[%emt 0:00:26]} Nb6 {[%emt 0:01:15]} 10. Nf4 {[%emt 0:00:11]} Bd7 {[%emt 0:20:56]} 11. e4 {[%emt 0:01:05]} Ba4 {[%emt 0:08:30]} 12. Qb1 {[%emt 0:00:37]} Bh6 {[%emt 0:03:28]} 13. Bg3 {[%emt 0:01:20]} O-O {[%emt 0:02:07]} 14. Qb4 {[%emt 0:01:56]} Qd6 {[%emt 0:03:20]} 15. Qxd6 {[%emt 0:00:50]} cxd6 {[%emt 0:04:08]} 16. O-O {[%emt 0:00:23]} Bc2 {[%emt 0:06:09]} 17. Bf3 {[%emt 0:00:36]} e5 {[%emt 0:02:19]} 18. Ne2 {[%emt 0:00:45]} Rfe8 {[%emt 0:01:33]} 19. h4 {[%emt 0:00:20]} f6 {[%emt 0:04:22]} 20. dxe5 {[%emt 0:00:16]} dxe5 {[%emt 0:00:35]} 21. h5 {[%emt 0:00:03]} Rad8 {[%emt 0:02:02]} 22. hxg6 {[%emt 0:00:21]} hxg6 {[%emt 0:00:08]} 23. Rfe1 {[%emt 0:00:25]} Na4 {[%emt 0:01:30]} 24. a3 {[%emt 0:00:35]} Bd2 {[%emt 0:01:09]} 0-1

[Event "95th Caplin Hastings Congress"]
[Site "Hastings"]
[Date "2019.12.30"]
[Round "3.41"]
[White "Balaji, Aaravamudhan"]
[Black "Faulks, Nick"]
[Result "1-0"]
[ECO "A67"]
[WhiteElo "2050"]
[BlackElo "1900"]
[Annotator "NA"]
[PlyCount "45"]
[EventDate "2019.12.28"]
[EventType "swiss"]
[EventCountry "ENG"]
[SourceTitle "playchess.com"]
[Source "ChessBase"]
[SourceQuality "1"]
[TimeControl "40/6600+30:3000+30"]

1. d4 {[%emt 0:09:31]} Nf6 {[%emt 0:09:46]} 2. c4 {[%emt 0:00:06]} c5 {[%emt 0:00:06]} 3. d5 {[%emt 0:00:04]} e6 {[%emt 0:00:04]} 4. Nc3 {[%emt 0:00:03]} exd5 {[%emt 0:00:05]} 5. cxd5 {[%emt 0:00:03]} d6 {[%emt 0:00:11]} 6. e4 {[%emt 0:00:04]} g6 {[%emt 0:00:08]} 7. f4 {[%emt 0:00:04]} Bg7 {[%emt 0:00:12]} 8. Bb5+ {[%emt 0:00:05]} Nfd7 {[%emt 0:00:39]} 9. Be2 {[%emt 0:00:11]} O-O {[%emt 0:04:12]} 10. Nf3 {[%emt 0:00:16]} Re8 {[%emt 0:01:49]} 11. O-O {[%emt 0:01:48]} Bxc3 {[%emt 0:04:48]} 12. bxc3 {[%emt 0:00:02]} Rxe4 {[%emt 0:00:38]} 13. f5 {[%emt 0:03:37]} Re8 {[%emt 0:15:57]} 14. fxg6 {[%emt 0:06:26]} hxg6 {[%emt 0:00:36]} 15. Bg5 {[%emt 0:16:25]} f6 {[%emt 0:02:55]} 16. Qc2 {[%emt 0:06:48]} Nf8 {[%emt 0:09:16]} 17. Nh4 {[%emt 0:05:21]} Rxe2 {[%emt 0:19:52]} 18. Qxe2 {[%emt 0:00:16]} fxg5 {[%emt 0:00:18]} 19. Qf3 {[%emt 0:00:32]} Qe7 {[%emt 0:02:26]} 20. Rae1 {[%emt 0:00:47]} Qg7 {[%emt 0:09:08]} 21. Nxg6 {[%emt 0:01:20]} Nxg6 {[%emt 0:00:55]} 22. Re8+ {[%emt 0:00:07]} Kh7 {[%emt 0:00:07]} 23. Qh5+ {[%emt 0:00:09]} 1-0

[Event "95th Caplin Hastings Congress"]
[Site "Hastings"]
[Date "2019.12.30"]
[Round "3.42"]
[White "Verma, Shlok"]
[Black "Anuprita, Patil"]
[Result "0-1"]
[ECO "D56"]
[WhiteElo "1691"]
[BlackElo "2025"]
[Annotator "NA"]
[PlyCount "148"]
[EventDate "2019.12.28"]
[EventType "swiss"]
[EventCountry "ENG"]
[SourceTitle "playchess.com"]
[Source "ChessBase"]
[SourceQuality "1"]
[TimeControl "40/6600+30:3000+30"]

1. d4 {[%emt 0:09:32]} d5 {[%emt 0:11:27]} 2. c4 {[%emt 0:00:08]} e6 {[%emt 0:00:27]} 3. Nf3 {[%emt 0:00:09]} Nf6 {[%emt 0:00:12]} 4. Nc3 {[%emt 0:00:26]} Be7 {[%emt 0:00:06]} 5. Bg5 {[%emt 0:01:15]} h6 {[%emt 0:00:22]} 6. Bh4 {[%emt 0:00:20]} O-O {[%emt 0:00:19]} 7. e3 {[%emt 0:00:20]} Ne4 {[%emt 0:01:26]} 8. Bxe7 {[%emt 0:10:01]} Qxe7 {[%emt 0:00:29]} 9. Qb3 {[%emt 0:20:01]} Nxc3 {[%emt 0:07:16]} 10. Qxc3 {[%emt 0:05:49]} c6 {[%emt 0:03:07]} 11. Bd3 {[%emt 0:04:04]} Nd7 {[%emt 0:00:15]} 12. O-O {[%emt 0:01:28]} Re8 {[%emt 0:02:25]} 13. Rfe1 {[%emt 0:18:40]} e5 {[%emt 0:23:32]} 14. e4 {[%emt 0:10:50]} dxc4 {[%emt 0:03:22]} 15. Bxc4 {[%emt 0:01:24]} exd4 {[%emt 0:00:34]} 16. Qxd4 {[%emt 0:04:41]} Nb6 {[%emt 0:02:13]} 17. Bb3 {[%emt 0:01:22]} Be6 {[%emt 0:05:58]} 18. Qc3 {[%emt 0:03:18]} Rad8 {[%emt 0:04:48]} 19. a4 {[%emt 0:02:37]} Bxb3 {[%emt 0:07:13]} 20. Qxb3 {[%emt 0:00:15]} Qe6 {[%emt 0:00:14]} 21. Qe3 {[%emt 0:07:49]} Qe7 {[%emt 0:19:30]} 22. b3 {[%emt 0:03:25]} Qb4 {[%emt 0:01:00]} 23. Rad1 {[%emt 0:02:11]} Rxd1 {[%emt 0:02:01]} 24. Rxd1 {[%emt 0:00:17]} Qxe4 {[%emt 0:00:39]} 25. Qxe4 {[%emt 0:01:18]} Rxe4 {[%emt 0:00:02]} 26. Rd8+ {[%emt 0:00:16]} Kh7 {[%emt 0:00:06]} 27. Rb8 {[%emt 0:00:42]} Re7 {[%emt 0:00:44]} 28. Kf1 {[%emt 0:00:22]} Nd5 {[%emt 0:01:31]} 29. Nd4 {[%emt 0:00:58]} Kg6 {[%emt 0:00:36]} 30. g4 {[%emt 0:00:45]} Re4 {[%emt 0:03:45]} 31. Ne2 {[%emt 0:00:57]} Rb4 {[%emt 0:01:51]} 32. Nc1 {[%emt 0:00:30]} b6 {[%emt 0:03:33]} 33. Nd3 {[%emt 0:02:15]} Rxb3 {[%emt 0:01:04]} 34. Ne5+ {[%emt 0:00:49]} Kf6 {[%emt 0:02:15]} 35. Nxc6 {[%emt 0:00:44]} Ra3 {[%emt 0:01:41]} 36. Nxa7 {[%emt 0:01:29]} Rxa4 {[%emt 0:00:15]} 37. Nc8 {[%emt 0:00:50]} Rb4 {[%emt 0:00:54]} 38. Ke2 {[%emt 0:00:29]} Rb2+ {[%emt 0:00:57]} 39. Kf3 {[%emt 0:01:16]} Ke5 {[%emt 0:04:26]} 40. Rb7 {[%emt 0:01:33]} Rb3+ {[%emt 0:00:52]} 41. Ke2 {[%emt 0:50:31]} Ke6 {[%emt 0:51:00]} 42. Na7 {[%emt 0:00:57]} Rb2+ {[%emt 0:04:03]} 43. Kf3 {[%emt 0:01:16]} g5 {[%emt 0:00:00]} 44. Nc6 {[%emt 0:00:00]} Kf6 {[%emt 0:00:00]} 45. Nd4 {[%emt 0:00:00]} Rb4 {[%emt 0:00:00]} 46. Nf5 {[%emt 0:00:00]} h5 {[%emt 0:00:00]} 47. Nh6 {[%emt 0:00:00]} Kg6 {[%emt 0:00:00]} 48. Nxf7 {[%emt 0:00:00]} Rf4+ {[%emt 0:00:00]} 49. Ke2 {[%emt 0:00:00]} Rxf7 {[%emt 0:00:00]} 50. gxh5+ {[%emt 0:00:00]} Kg7 {[%emt 0:00:00]} 51. Rb8 {[%emt 0:00:00]} Rf6 {[%emt 0:00:00]} 52. f3 {[%emt 0:00:00]} Nf4+ {[%emt 0:00:00]} 53. Ke3 {[%emt 0:00:00]} Nxh5 {[%emt 0:00:00]} 54. Rb7+ {[%emt 0:00:00]} Kg6 {[%emt 0:00:00]} 55. Ke4 {[%emt 0:00:00]} Nf4 {[%emt 0:00:00]} 56. Rb8 {[%emt 0:00:00]} Nh3 {[%emt 0:00:00]} 57. Rh8 {[%emt 0:00:00]} Ng1 {[%emt 0:00:00]} 58. h4 {[%emt 0:00:00]} Rf4+ {[%emt 0:00:00]} 59. Kd5 {[%emt 0:00:00]} Rxh4 {[%emt 0:00:00]} 60. Rg8+ {[%emt 0:00:00]} Kf6 {[%emt 0:00:00]} 61. Rf8+ {[%emt 0:00:00]} Kg7 {[%emt 0:00:36]} 62. Rf5 {[%emt 0:00:00]} Kg6 {[%emt 0:00:00]} 63. Ke5 {[%emt 0:00:00]} Rb4 {[%emt 0:00:00]} 64. Rf8 {[%emt 0:00:00]} Kg7 {[%emt 0:00:00]} 65. Rf6 {[%emt 0:00:00]} Rb3 {[%emt 0:00:00]} 66. f4 {[%emt 0:00:00]} Nf3+ {[%emt 0:00:00]} 67. Kf5 {[%emt 0:00:00]} Rb5+ {[%emt 0:00:00]} 68. Ke6 {[%emt 0:00:00]} g4 {[%emt 0:00:00]} 69. Rf7+ {[%emt 0:00:00]} Kh6 {[%emt 0:00:00]} 70. Kf6 {[%emt 0:00:00]} Nh4 {[%emt 0:00:00]} 71. Ke6 {[%emt 0:00:00]} g3 {[%emt 0:00:00]} 72. Rc7 {[%emt 0:00:00]} g2 {[%emt 0:00:00]} 73. Rc1 {[%emt 0:00:00]} Kh5 {[%emt 0:00:00]} 74. Rg1 {[%emt 0:00:00]} Kg4 {[%emt 0:00:00] Ke5} 0-1

[Event "95th Caplin Hastings Congress"]
[Site "Hastings"]
[Date "2019.12.30"]
[Round "3.43"]
[White "Brouwer, Willem"]
[Black "Norinkeviciute, Rasa"]
[Result "1/2-1/2"]
[ECO "A14"]
[WhiteElo "1662"]
[BlackElo "2018"]
[Annotator "NA"]
[PlyCount "112"]
[EventDate "2019.12.28"]
[EventType "swiss"]
[EventCountry "ENG"]
[SourceTitle "playchess.com"]
[Source "ChessBase"]
[SourceQuality "1"]
[TimeControl "40/6600+30:3000+30"]

1. Nf3 {[%emt 0:09:39]} b6 {[%emt 0:10:06]} 2. g3 {[%emt 0:00:29]} Bb7 {[%emt 0:00:04]} 3. Bg2 {[%emt 0:00:07]} Nf6 {[%emt 0:00:41]} 4. O-O {[%emt 0:00:47]} e6 {[%emt 0:00:57]} 5. c4 {[%emt 0:00:25]} Be7 {[%emt 0:00:30]} 6. b3 {[%emt 0:00:29]} d5 {[%emt 0:01:19]} 7. Bb2 {[%emt 0:01:19]} c5 {[%emt 0:02:14]} 8. e3 {[%emt 0:01:13]} dxc4 {[%emt 0:01:59]} 9. bxc4 {[%emt 0:00:21]} O-O {[%emt 0:00:15]} 10. Nc3 {[%emt 0:02:57]} Nc6 {[%emt 0:01:55]} 11. a3 {[%emt 0:09:20]} Na5 {[%emt 0:08:11]} 12. d3 {[%emt 0:02:01]} Nd7 {[%emt 0:03:39]} 13. Qc2 {[%emt 0:02:36]} Bf6 {[%emt 0:01:35]} 14. Rad1 {[%emt 0:04:12]} Qe7 {[%emt 0:02:50]} 15. e4 {[%emt 0:15:23]} Nc6 {[%emt 0:03:08]} 16. Rfe1 {[%emt 0:07:43]} g6 {[%emt 0:09:50]} 17. Ne2 {[%emt 0:02:39]} Rad8 {[%emt 0:04:11]} 18. d4 {[%emt 0:01:35]} cxd4 {[%emt 0:00:42]} 19. Nexd4 {[%emt 0:03:02]} Nxd4 {[%emt 0:02:19]} 20. Nxd4 {[%emt 0:05:34]} a6 {[%emt 0:20:49]} 21. Nb3 {[%emt 0:06:23]} e5 {[%emt 0:14:01]} 22. Rd3 {[%emt 0:08:35]} a5 {[%emt 0:03:48]} 23. Red1 {[%emt 0:02:51]} Bc6 {[%emt 0:07:22]} 24. Nc1 {[%emt 0:03:37]} Nc5 {[%emt 0:01:24]} 25. Rxd8 {[%emt 0:00:55]} Rxd8 {[%emt 0:00:12]} 26. Rxd8+ {[%emt 0:01:54]} Qxd8 {[%emt 0:00:05]} 27. Ne2 {[%emt 0:01:03]} Ba4 {[%emt 0:03:38]} 28. Qc1 {[%emt 0:03:44]} Nb3 {[%emt 0:03:21]} 29. Qe1 {[%emt 0:03:44]} Qd3 {[%emt 0:08:09]} 30. Nc3 {[%emt 0:03:30]} Qxc4 {[%emt 0:04:25]} 31. Nd5 {[%emt 0:00:20]} Bg7 {[%emt 0:01:09]} 32. Nxb6 {[%emt 0:00:38]} Qb5 {[%emt 0:00:07]} 33. Nd5 {[%emt 0:04:13]} Nc5 {[%emt 0:00:44]} 34. Bc3 {[%emt 0:01:57]} Nb7 {[%emt 0:00:28]} 35. Bf1 {[%emt 0:00:22]} Qc5 {[%emt 0:00:22]} 36. Qc1 {[%emt 0:02:06]} Nd6 {[%emt 0:00:55]} 37. Bg2 {[%emt 0:01:32]} Nc4 {[%emt 0:00:18]} 38. Bb2 {[%emt 0:01:13]} Qb5 {[%emt 0:00:19]} 39. Bc3 {[%emt 0:02:55]} Qb3 {[%emt 0:00:14]} 40. Qe1 {[%emt 0:00:26]} Nxa3 {[%emt 0:00:32]} 41. Bxa5 {[%emt 0:51:01]} Nc2 {[%emt 0:50:29]} 42. Qc1 {[%emt 0:05:39]} h5 {[%emt 0:00:00]} 43. h4 {[%emt 0:00:00]} Kh7 {[%emt 0:00:00]} 44. Bc3 {[%emt 0:00:00]} Bc6 {[%emt 0:00:00]} 45. Qb2 {[%emt 0:00:00]} Qxb2 {[%emt 0:00:00]} 46. Bxb2 {[%emt 0:00:00]} Nd4 {[%emt 0:00:00]} 47. Kh2 {[%emt 0:00:00]} Ne6 {[%emt 0:00:00]} 48. f3 {[%emt 0:00:00]} Bb5 {[%emt 0:00:00]} 49. Ba3 {[%emt 0:00:00]} Nd4 {[%emt 0:00:00]} 50. Nc3 {[%emt 0:00:00]} Bc4 {[%emt 0:00:00]} 51. Bd6 {[%emt 0:00:00]} f6 {[%emt 0:00:00]} 52. f4 {[%emt 0:00:00]} Kg8 {[%emt 0:00:00]} 53. Kg1 {[%emt 0:00:00]} Kf7 {[%emt 0:00:00]} 54. Kf2 {[%emt 0:00:00]} Ke6 {[%emt 0:00:00]} 55. fxe5 {[%emt 0:00:00]} fxe5 {[%emt 0:00:00]} 56. Bc5 {[%emt 0:00:00]} Bh6 {[%emt 0:00:00]} 1/2-1/2